[Event "Lueneburg Open-A 2019"]
[Site "Lueneburg"]
[Date "2019.08.09"]
[Round "7.23"]
[White "Nielsen, Joerg"]
[Black "Koellner, Christof"]
[Result "0-1"]
[ECO "E11"]
[WhiteElo "2000"]
[BlackElo "2091"]
[Annotator "NA"]
[PlyCount "118"]
[EventDate "2019.08.03"]
[EventType "swiss"]
[EventCountry "GER"]
[SourceTitle "playchess.com"]
[Source "ChessBase"]
[SourceQuality "1"]
[TimeControl "40/5400+30:1800+30"]

1. c4 {[%emt 0:00:00]} Nf6 {[%emt 0:00:26]} 2. g3 {[%emt 0:00:00]} e6 {[%emt 0:00:14]} 3. d4 {[%emt 0:00:19]} d5 {[%emt 0:00:23]} 4. Bg2 {[%emt 0:00:07]} c6 {[%emt 0:01:41]} 5. Nf3 {[%emt 0:00:44]} Bb4+ {[%emt 0:00:25]} 6. Bd2 {[%emt 0:00:22]} Be7 {[%emt 0:00:25]} 7. Qc2 {[%emt 0:00:46]} Ne4 {[%emt 0:01:22]} 8. O-O {[%emt 0:03:59]} O-O {[%emt 0:00:10]} 9. b3 {[%emt 0:01:38]} Nd7 {[%emt 0:00:46]} 10. Nc3 {[%emt 0:03:34]} Nxd2 {[%emt 0:05:16]} 11. Qxd2 {[%emt 0:03:05]} f5 {[%emt 0:00:24]} 12. e3 {[%emt 0:04:36]} Bd6 {[%emt 0:07:14]} 13. Rad1 {[%emt 0:02:03]} Qe7 {[%emt 0:05:36]} 14. Qc2 {[%emt 0:00:57]} g5 {[%emt 0:01:32]} 15. Rfe1 {[%emt 0:08:08]} Qg7 {[%emt 0:02:18]} 16. Nd2 {[%emt 0:10:16]} h5 {[%emt 0:04:07]} 17. Nf1 {[%emt 0:04:14]} Nf6 {[%emt 0:04:30]} 18. f3 {[%emt 0:02:04]} g4 {[%emt 0:04:02]} 19. f4 {[%emt 0:07:08]} h4 {[%emt 0:04:23]} 20. gxh4 {[%emt 0:05:52]} Bd7 {[%emt 0:05:31]} 21. Ng3 {[%emt 0:00:45]} Qh7 {[%emt 0:01:49]} 22. Bf1 {[%emt 0:09:57]} Qxh4 {[%emt 0:00:59]} 23. Re2 {[%emt 0:03:15]} Kf7 {[%emt 0:00:54]} 24. Rg2 {[%emt 0:00:20]} Rh8 {[%emt 0:01:16]} 25. Bd3 {[%emt 0:01:52]} Qh7 {[%emt 0:06:19]} 26. Rf1 {[%emt 0:01:57]} Qg6 {[%emt 0:01:42]} 27. Qb2 {[%emt 0:03:10]} Rh3 {[%emt 0:06:40]} 28. c5 {[%emt 0:02:52]} Be7 {[%emt 0:00:04]} 29. b4 {[%emt 0:00:28]} b6 {[%emt 0:02:44]} 30. Rb1 {[%emt 0:05:24]} Rhh8 {[%emt 0:02:05]} 31. Qc1 {[%emt 0:01:19]} Nh5 {[%emt 0:06:39]} 32. Nce2 {[%emt 0:00:45]} Rhb8 {[%emt 0:05:23]} 33. Nxh5 {[%emt 0:02:06]} Qxh5 {[%emt 0:00:03]} 34. Ng3 {[%emt 0:00:09]} Qh8 {[%emt 0:00:54]} 35. Rgb2 {[%emt 0:01:15]} Bf6 {[%emt 0:01:54]} 36. Qc3 {[%emt 0:02:11]} Bh4 {[%emt 0:02:06]} 37. Qe1 {[%emt 0:03:02]} b5 {[%emt 0:07:22]} 38. Rg2 {[%emt 0:01:26]} a5 {[%emt 0:00:22]} 39. a3 {[%emt 0:05:44]} axb4 {[%emt 0:00:19]} 40. Qxb4 {[%emt 0:01:01]} Ra4 {[%emt 0:00:41]} 41. Qc3 {[%emt 0:30:55]} Bf6 {[%emt 0:30:46]} 42. Rb4 {[%emt 0:00:00]} Rba8 {[%emt 0:00:00]} 43. Ra2 {[%emt 0:00:00]} Rxb4 {[%emt 0:00:00]} 44. Qxb4 {[%emt 0:00:00]} Ra4 {[%emt 0:00:00]} 45. Qb1 {[%emt 0:00:00]} Qa8 {[%emt 0:00:00]} 46. Bc2 {[%emt 0:00:00]} Rxa3 {[%emt 0:00:00]} 47. Rxa3 {[%emt 0:00:00]} Qxa3 {[%emt 0:00:00]} 48. Bb3 {[%emt 0:00:00]} Qb4 {[%emt 0:00:00]} 49. Nf1 {[%emt 0:00:00]} Bxd4 {[%emt 0:00:00]} 50. exd4 {[%emt 0:00:00]} Qxd4+ {[%emt 0:00:00]} 51. Kg2 {[%emt 0:00:00]} Qxc5 {[%emt 0:00:00]} 52. Qe1 {[%emt 0:00:00]} Qd4 {[%emt 0:00:00]} 53. Qe5 {[%emt 0:00:00]} Qxe5 {[%emt 0:00:00]} 54. fxe5 {[%emt 0:00:00]} c5 {[%emt 0:00:00]} 55. Kg3 {[%emt 0:00:00]} c4 {[%emt 0:00:00]} 56. Ba2 {[%emt 0:00:00]} b4 {[%emt 0:00:00]} 57. Ne3 {[%emt 0:00:00]} Bb5 {[%emt 0:00:01]} 58. Bb1 {[%emt 0:00:00]} b3 {[%emt 0:01:54]} 59. Kf4 {[%emt 0:00:00]} d4 {[%emt 0:02:52]} 0-1

[Event "Lueneburg Open-A 2019"]
[Site "Lueneburg"]
[Date "2019.08.09"]
[Round "7.24"]
[White "Garbuszus, Juergen"]
[Black "Nixdorf, Andre"]
[Result "1-0"]
[ECO "B22"]
[WhiteElo "2070"]
[BlackElo "1936"]
[Annotator "NA"]
[PlyCount "53"]
[EventDate "2019.08.03"]
[EventType "swiss"]
[EventCountry "GER"]
[SourceTitle "playchess.com"]
[Source "ChessBase"]
[SourceQuality "1"]
[TimeControl "40/5400+30:1800+30"]

1. e4 {[%emt 0:00:53]} c5 {[%emt 0:00:00]} 2. d3 {[%emt 0:00:12]} Nc6 {[%emt 0:00:44]} 3. f4 {[%emt 0:00:05]} d6 {[%emt 0:00:19]} 4. Be2 {[%emt 0:00:47]} Nf6 {[%emt 0:03:09]} 5. Nf3 {[%emt 0:00:20]} g6 {[%emt 0:01:32]} 6. O-O {[%emt 0:02:30]} Bg7 {[%emt 0:00:06]} 7. c3 {[%emt 0:01:07]} O-O {[%emt 0:00:18]} 8. Na3 {[%emt 0:02:51]} Rb8 {[%emt 0:01:23]} 9. Nc2 {[%emt 0:01:38]} b5 {[%emt 0:00:49]} 10. Qe1 {[%emt 0:06:26]} b4 {[%emt 0:04:23]} 11. Bd2 {[%emt 0:00:57]} a5 {[%emt 0:02:26]} 12. Ne3 {[%emt 0:04:23]} Ba6 {[%emt 0:09:10]} 13. e5 {[%emt 0:07:58]} dxe5 {[%emt 0:10:48]} 14. fxe5 {[%emt 0:00:03]} Nd5 {[%emt 0:00:56]} 15. Ng4 {[%emt 0:04:39]} bxc3 {[%emt 0:15:41]} 16. bxc3 {[%emt 0:01:23]} f5 {[%emt 0:06:47]} 17. Nh6+ {[%emt 0:06:03]} Bxh6 {[%emt 0:09:48]} 18. Bxh6 {[%emt 0:00:01]} Re8 {[%emt 0:00:13]} 19. e6 {[%emt 0:01:16]} Qd6 {[%emt 0:01:40]} 20. Ng5 {[%emt 0:01:32]} Nd8 {[%emt 0:20:41]} 21. c4 {[%emt 0:12:40]} Nf6 {[%emt 0:01:32]} 22. Qc3 {[%emt 0:08:29]} Nxe6 {[%emt 0:04:15]} 23. Nxe6 {[%emt 0:00:04]} Qxe6 {[%emt 0:00:07]} 24. Bf3 {[%emt 0:00:06]} Qd6 {[%emt 0:01:16]} 25. Bd5+ {[%emt 0:00:15]} Kh8 {[%emt 0:00:36]} 26. Bf7 {[%emt 0:02:39]} Red8 {[%emt 0:04:21]} 27. Bf4 {[%emt 0:34:13] Ng8} 1-0

[Event "Lueneburg Open-A 2019"]
[Site "Lueneburg"]
[Date "2019.08.09"]
[Round "7.25"]
[White "Kroencke, Manfred"]
[Black "Meschke, Oliver"]
[Result "1-0"]
[ECO "B31"]
[WhiteElo "2047"]
[BlackElo "1900"]
[Annotator "NA"]
[PlyCount "97"]
[EventDate "2019.08.03"]
[EventType "swiss"]
[EventCountry "GER"]
[SourceTitle "playchess.com"]
[Source "ChessBase"]
[SourceQuality "1"]
[TimeControl "40/5400+30:1800+30"]

1. e4 {[%emt 0:00:00]} c5 {[%emt 0:00:00]} 2. Nf3 {[%emt 0:00:00]} Nc6 {[%emt 0:00:00]} 3. Bb5 {[%emt 0:00:04]} g6 {[%emt 0:00:13]} 4. O-O {[%emt 0:00:26]} Bg7 {[%emt 0:00:07]} 5. Re1 {[%emt 0:02:08]} Nf6 {[%emt 0:00:26]} 6. d3 {[%emt 0:02:01]} O-O {[%emt 0:01:04]} 7. c3 {[%emt 0:09:40]} d6 {[%emt 0:09:12]} 8. Bxc6 {[%emt 0:05:38]} bxc6 {[%emt 0:01:01]} 9. Qa4 {[%emt 0:00:21]} Qc7 {[%emt 0:09:17]} 10. e5 {[%emt 0:05:59]} Nd5 {[%emt 0:02:21]} 11. exd6 {[%emt 0:02:53]} exd6 {[%emt 0:00:08]} 12. Qh4 {[%emt 0:01:01]} Qd8 {[%emt 0:11:01]} 13. Bg5 {[%emt 0:01:58]} f6 {[%emt 0:07:39]} 14. Bc1 {[%emt 0:00:48]} g5 {[%emt 0:08:27]} 15. Qa4 {[%emt 0:00:48]} Qc7 {[%emt 0:07:13]} 16. h3 {[%emt 0:03:08]} Bf5 {[%emt 0:02:46]} 17. d4 {[%emt 0:00:51]} Nb6 {[%emt 0:07:31]} 18. Qa5 {[%emt 0:01:03]} Qf7 {[%emt 0:08:28]} 19. Na3 {[%emt 0:02:17]} Qd5 {[%emt 0:03:16]} 20. dxc5 {[%emt 0:05:04]} Qxc5 {[%emt 0:07:05]} 21. Qxc5 {[%emt 0:03:26]} dxc5 {[%emt 0:00:02]} 22. Be3 {[%emt 0:00:58]} Na4 {[%emt 0:00:01]} 23. b3 {[%emt 0:01:24]} Nxc3 {[%emt 0:00:47]} 24. Bxc5 {[%emt 0:00:22]} Rfd8 {[%emt 0:01:25]} 25. Nd4 {[%emt 0:03:29]} Bg6 {[%emt 0:06:06]} 26. Nxc6 {[%emt 0:02:57]} Rd2 {[%emt 0:00:24]} 27. Nc4 {[%emt 0:01:33]} Rxa2 {[%emt 0:03:09]} 28. Ne7+ {[%emt 0:01:14]} Kh8 {[%emt 0:00:27]} 29. Rxa2 {[%emt 0:01:30]} Nxa2 {[%emt 0:00:01]} 30. Ra1 {[%emt 0:01:55]} Nc3 {[%emt 0:00:03]} 31. Nxg6+ {[%emt 0:01:00]} hxg6 {[%emt 0:00:02]} 32. Rxa7 {[%emt 0:01:31]} Rxa7 {[%emt 0:01:09]} 33. Bxa7 {[%emt 0:00:14]} Bf8 {[%emt 0:00:03]} 34. Kf1 {[%emt 0:00:35]} Kg8 {[%emt 0:00:01]} 35. Bd4 {[%emt 0:00:39]} Nd5 {[%emt 0:00:03]} 36. Ne3 {[%emt 0:00:42]} Nxe3+ {[%emt 0:01:11]} 37. Bxe3 {[%emt 0:00:22]} Kf7 {[%emt 0:00:01]} 38. Ke2 {[%emt 0:00:22]} Ke6 {[%emt 0:00:34]} 39. Kd3 {[%emt 0:00:19]} Kd5 {[%emt 0:00:24]} 40. f3 {[%emt 0:03:16]} Be7 {[%emt 0:01:51]} 41. Kc3 {[%emt 0:34:18]} f5 {[%emt 0:32:28]} 42. g4 {[%emt 0:02:17]} Bf6+ {[%emt 0:00:00]} 43. Kd3 {[%emt 0:00:00]} f4 {[%emt 0:00:00]} 44. Bd2 {[%emt 0:00:00]} Bd8 {[%emt 0:00:00]} 45. Bc3 {[%emt 0:00:00]} Be7 {[%emt 0:00:00]} 46. Bd4 {[%emt 0:00:00]} Bd8 {[%emt 0:00:00]} 47. b4 {[%emt 0:00:00]} Be7 {[%emt 0:00:00]} 48. b5 {[%emt 0:00:00]} Bc5 {[%emt 0:06:33]} 49. Bf6 {[%emt 0:33:59]} 1-0

[Event "Lueneburg Open-A 2019"]
[Site "Lueneburg"]
[Date "2019.08.09"]
[Round "7.26"]
[White "Blum, Frederik"]
[Black "Schwarz, Jochen"]
[Result "1-0"]
[ECO "C12"]
[WhiteElo "2037"]
[BlackElo "1909"]
[Annotator "NA"]
[PlyCount "109"]
[EventDate "2019.08.03"]
[EventType "swiss"]
[EventCountry "GER"]
[SourceTitle "playchess.com"]
[Source "ChessBase"]
[SourceQuality "1"]
[TimeControl "40/5400+30:1800+30"]

1. e4 {[%emt 0:00:00]} e6 {[%emt 0:00:00]} 2. d4 {[%emt 0:00:00]} d5 {[%emt 0:00:00]} 3. Nc3 {[%emt 0:00:02]} Nf6 {[%emt 0:00:02]} 4. Bg5 {[%emt 0:00:43]} Bb4 {[%emt 0:00:42]} 5. e5 {[%emt 0:01:31]} h6 {[%emt 0:00:13]} 6. Bh4 {[%emt 0:00:18]} g5 {[%emt 0:00:55]} 7. Bg3 {[%emt 0:00:05]} Ne4 {[%emt 0:00:32]} 8. Nge2 {[%emt 0:14:57]} c5 {[%emt 0:03:11]} 9. dxc5 {[%emt 0:13:40]} Nc6 {[%emt 0:05:36]} 10. Qd3 {[%emt 0:05:47]} h5 {[%emt 0:08:50]} 11. h4 {[%emt 0:13:11]} Bd7 {[%emt 0:17:11]} 12. O-O-O {[%emt 0:05:44]} Nxg3 {[%emt 0:03:20]} 13. Qxg3 {[%emt 0:01:14]} g4 {[%emt 0:03:17]} 14. Nf4 {[%emt 0:06:24]} Qa5 {[%emt 0:07:21]} 15. Nb5 {[%emt 0:08:39]} Bxc5 {[%emt 0:06:08]} 16. a3 {[%emt 0:05:06]} O-O-O {[%emt 0:06:27]} 17. c3 {[%emt 0:06:15]} Qb6 {[%emt 0:01:41]} 18. Nd6+ {[%emt 0:03:29]} Bxd6 {[%emt 0:08:04]} 19. exd6 {[%emt 0:00:07]} Na5 {[%emt 0:00:34]} 20. b4 {[%emt 0:01:55]} Nb3+ {[%emt 0:02:40]} 21. Kb2 {[%emt 0:00:42]} Ba4 {[%emt 0:02:45]} 22. Qe3 {[%emt 0:03:57]} d4 {[%emt 0:02:22]} 23. cxd4 {[%emt 0:01:14]} Rxd6 {[%emt 0:03:51]} 24. d5 {[%emt 0:00:46]} Qxe3 {[%emt 0:03:27]} 25. fxe3 {[%emt 0:00:05]} e5 {[%emt 0:00:17]} 26. Ne2 {[%emt 0:01:05]} Rf6 {[%emt 0:05:36]} 27. Rd3 {[%emt 0:01:49]} Rf2 {[%emt 0:02:16]} 28. Rxb3 {[%emt 0:00:45]} Bxb3 {[%emt 0:00:16]} 29. Kxb3 {[%emt 0:00:04]} Kd7 {[%emt 0:00:13]} 30. Nc3 {[%emt 0:01:26]} f5 {[%emt 0:00:18]} 31. Rg1 {[%emt 0:01:15]} Rc8 {[%emt 0:00:21]} 32. Bd3 {[%emt 0:00:36]} e4 {[%emt 0:00:48]} 33. Bc4 {[%emt 0:00:26]} a6 {[%emt 0:00:23]} 34. a4 {[%emt 0:00:11]} Kd6 {[%emt 0:00:31]} 35. Nd1 {[%emt 0:01:11]} Rd2 {[%emt 0:00:36]} 36. Nc3 {[%emt 0:00:05]} Rf2 {[%emt 0:00:40]} 37. Rf1 {[%emt 0:02:01]} Rxg2 {[%emt 0:02:02]} 38. Rxf5 {[%emt 0:00:10]} Re8 {[%emt 0:00:54]} 39. Rxh5 {[%emt 0:00:13]} Rg3 {[%emt 0:00:30]} 40. Rh6+ {[%emt 0:01:06]} Kd7 {[%emt 0:00:20]} 41. Rh7+ {[%emt 0:31:40]} Re7 {[%emt 0:31:25]} 42. Rxe7+ {[%emt 0:00:00]} Kxe7 {[%emt 0:00:00]} 43. Be2 {[%emt 0:00:00]} b6 {[%emt 0:00:00]} 44. Kc4 {[%emt 0:00:00]} Rg2 {[%emt 0:00:00]} 45. Kd4 {[%emt 0:00:00]} g3 {[%emt 0:00:00]} 46. Kxe4 {[%emt 0:00:00]} Rh2 {[%emt 0:00:00]} 47. Kf3 {[%emt 0:00:00]} g2 {[%emt 0:00:00]} 48. Kf2 {[%emt 0:00:00]} Rxh4 {[%emt 0:00:00]} 49. Kxg2 {[%emt 0:00:00]} Rxb4 {[%emt 0:00:00]} 50. Bxa6 {[%emt 0:00:00]} Rb3 {[%emt 0:00:00]} 51. Nd1 {[%emt 0:00:00]} Kd6 {[%emt 0:00:00]} 52. e4 {[%emt 0:00:00]} Ke5 {[%emt 0:00:00]} 53. Nf2 {[%emt 0:00:00]} Kf4 {[%emt 0:00:00]} 54. Nd3+ {[%emt 0:00:00]} Kxe4 {[%emt 0:00:00]} 55. d6 {[%emt 0:00:00]} 1-0

[Event "Lueneburg Open-A 2019"]
[Site "Lueneburg"]
[Date "2019.08.09"]
[Round "7.27"]
[White "Berres, Eric"]
[Black "Ramme, Christoph"]
[Result "0-1"]
[ECO "D39"]
[WhiteElo "1890"]
[BlackElo "2154"]
[Annotator "NA"]
[PlyCount "112"]
[EventDate "2019.08.03"]
[EventType "swiss"]
[EventCountry "GER"]
[SourceTitle "playchess.com"]
[Source "ChessBase"]
[SourceQuality "1"]
[TimeControl "40/5400+30:1800+30"]

1. d4 {[%emt 0:00:00]} Nf6 {[%emt 0:00:00]} 2. c4 {[%emt 0:00:00]} e6 {[%emt 0:00:00]} 3. Nf3 {[%emt 0:00:00]} d5 {[%emt 0:00:03]} 4. Nc3 {[%emt 0:00:21]} dxc4 {[%emt 0:01:09]} 5. e4 {[%emt 0:00:09]} Bb4 {[%emt 0:01:09]} 6. Bg5 {[%emt 0:03:13]} c5 {[%emt 0:02:43]} 7. Bxc4 {[%emt 0:00:19]} cxd4 {[%emt 0:01:18]} 8. Nxd4 {[%emt 0:00:07]} Bxc3+ {[%emt 0:01:36]} 9. bxc3 {[%emt 0:00:12]} Qa5 {[%emt 0:00:55]} 10. Bb5+ {[%emt 0:00:22]} Nbd7 {[%emt 0:00:37]} 11. Bxf6 {[%emt 0:01:11]} Qxc3+ {[%emt 0:00:17]} 12. Kf1 {[%emt 0:00:35]} gxf6 {[%emt 0:00:11]} 13. Rc1 {[%emt 0:00:27]} Qb4 {[%emt 0:06:21]} 14. a4 {[%emt 0:15:26]} Qd6 {[%emt 0:04:10]} 15. h4 {[%emt 0:14:14]} a6 {[%emt 0:02:24]} 16. Be2 {[%emt 0:05:29]} Ne5 {[%emt 0:04:15]} 17. Rc2 {[%emt 0:06:46]} Bd7 {[%emt 0:05:39]} 18. Rd2 {[%emt 0:00:27]} Qb4 {[%emt 0:03:15]} 19. Ra2 {[%emt 0:17:10]} Nc6 {[%emt 0:04:37]} 20. Nc2 {[%emt 0:04:10]} Qc5 {[%emt 0:02:03]} 21. Rh3 {[%emt 0:01:42]} Rd8 {[%emt 0:03:42]} 22. Qa1 {[%emt 0:04:11]} Qe5 {[%emt 0:03:10]} 23. Qxe5 {[%emt 0:00:49]} fxe5 {[%emt 0:03:20]} 24. Rb3 {[%emt 0:03:06]} Na5 {[%emt 0:04:37]} 25. Rc3 {[%emt 0:00:08]} Rc8 {[%emt 0:01:02]} 26. Rxc8+ {[%emt 0:00:05]} Bxc8 {[%emt 0:00:07]} 27. Ne3 {[%emt 0:00:55]} Ke7 {[%emt 0:02:13]} 28. Rc2 {[%emt 0:02:02]} Bd7 {[%emt 0:03:08]} 29. Rc5 {[%emt 0:01:39]} Nc6 {[%emt 0:04:07]} 30. Nc4 {[%emt 0:02:39]} f6 {[%emt 0:00:45]} 31. Nb6 {[%emt 0:00:42]} Kd6 {[%emt 0:02:46]} 32. Rc3 {[%emt 0:01:12]} Nd4 {[%emt 0:03:01]} 33. Nc4+ {[%emt 0:01:48]} Ke7 {[%emt 0:01:32]} 34. Nb6 {[%emt 0:00:11]} Bc6 {[%emt 0:00:46]} 35. f3 {[%emt 0:01:05]} Nxe2 {[%emt 0:07:48]} 36. Kxe2 {[%emt 0:00:13]} Rd8 {[%emt 0:00:16]} 37. Rd3 {[%emt 0:04:57]} Rd4 {[%emt 0:04:27]} 38. g3 {[%emt 0:05:15]} Kd6 {[%emt 0:02:00]} 39. Nc4+ {[%emt 0:03:15]} Kc5 {[%emt 0:02:07]} 40. Rxd4 {[%emt 0:02:24]} exd4 {[%emt 0:02:11]} 41. Na5 {[%emt 0:01:38]} Bxa4 {[%emt 0:03:25]} 42. Nxb7+ {[%emt 0:00:21]} Kc6 {[%emt 0:01:06]} 43. Nd8+ {[%emt 0:02:26]} Kd7 {[%emt 0:00:57]} 44. Nb7 {[%emt 0:00:07]} Bb5+ {[%emt 0:00:25]} 45. Kd2 {[%emt 0:00:08]} e5 {[%emt 0:02:52]} 46. Nc5+ {[%emt 0:04:39]} Kd6 {[%emt 0:02:16]} 47. Nb7+ {[%emt 0:00:36]} Kc7 {[%emt 0:00:51]} 48. Nc5 {[%emt 0:00:18]} Bc4 {[%emt 0:02:02]} 49. f4 {[%emt 0:01:21]} Kc6 {[%emt 0:01:09]} 50. Na4 {[%emt 0:00:09]} Bb5 {[%emt 0:01:19]} 51. Nb2 {[%emt 0:00:12]} a5 {[%emt 0:00:48]} 52. fxe5 {[%emt 0:02:38]} fxe5 {[%emt 0:00:09]} 53. g4 {[%emt 0:01:17]} a4 {[%emt 0:01:23]} 54. Kc1 {[%emt 0:01:24]} a3 {[%emt 0:02:23]} 55. Nd1 {[%emt 0:00:04]} Be2 {[%emt 0:00:41]} 56. Nf2 {[%emt 0:00:16]} d3 {[%emt 0:01:02]} 0-1

[Event "Lueneburg Open-A 2019"]
[Site "Lueneburg"]
[Date "2019.08.09"]
[Round "7.28"]
[White "Beuter, Christof"]
[Black "Terhorst, Jochen"]
[Result "0-1"]
[ECO "B43"]
[WhiteElo "1930"]
[BlackElo "2144"]
[Annotator "NA"]
[PlyCount "80"]
[EventDate "2019.08.03"]
[EventType "swiss"]
[EventCountry "GER"]
[SourceTitle "playchess.com"]
[Source "ChessBase"]
[SourceQuality "1"]
[TimeControl "40/5400+30:1800+30"]

1. e4 {[%emt 0:00:00]} c5 {[%emt 0:00:00]} 2. Nf3 {[%emt 0:00:00]} a6 {[%emt 0:00:00]} 3. Nc3 {[%emt 0:00:18]} e6 {[%emt 0:00:10]} 4. d4 {[%emt 0:00:18]} cxd4 {[%emt 0:00:06]} 5. Nxd4 {[%emt 0:00:06]} Qc7 {[%emt 0:00:06]} 6. Be2 {[%emt 0:03:39]} Nf6 {[%emt 0:00:27]} 7. a3 {[%emt 0:01:19]} Be7 {[%emt 0:00:16]} 8. Be3 {[%emt 0:01:27]} d6 {[%emt 0:00:23]} 9. Qd2 {[%emt 0:02:31]} b5 {[%emt 0:03:01]} 10. f4 {[%emt 0:05:05]} Bb7 {[%emt 0:01:00]} 11. Bf3 {[%emt 0:00:08]} Nbd7 {[%emt 0:00:59]} 12. g4 {[%emt 0:01:54]} Nb6 {[%emt 0:08:40]} 13. O-O-O {[%emt 0:05:32]} Nc4 {[%emt 0:03:08]} 14. Qd3 {[%emt 0:04:04]} Rc8 {[%emt 0:05:23]} 15. Bd2 {[%emt 0:03:57]} Nd7 {[%emt 0:07:32]} 16. g5 {[%emt 0:09:24]} Nxd2 {[%emt 0:16:38]} 17. Rxd2 {[%emt 0:05:10]} Nb6 {[%emt 0:06:16]} 18. Rg2 {[%emt 0:18:38]} Qc4 {[%emt 0:07:08]} 19. Qe3 {[%emt 0:03:15]} Qc5 {[%emt 0:13:32]} 20. Qd3 {[%emt 0:04:47]} Nc4 {[%emt 0:02:52]} 21. Re1 {[%emt 0:09:20]} Nxa3 {[%emt 0:09:16]} 22. f5 {[%emt 0:00:25]} e5 {[%emt 0:00:43]} 23. Nb3 {[%emt 0:10:04]} Qc7 {[%emt 0:02:45]} 24. Ree2 {[%emt 0:02:13]} Nc4 {[%emt 0:00:30]} 25. Nd5 {[%emt 0:00:21]} Bxd5 {[%emt 0:00:30]} 26. Qxd5 {[%emt 0:00:10]} Qc6 {[%emt 0:03:16]} 27. Qd3 {[%emt 0:01:08]} a5 {[%emt 0:00:42]} 28. Nd2 {[%emt 0:02:02]} Nb6 {[%emt 0:00:11]} 29. g6 {[%emt 0:00:44]} Bf6 {[%emt 0:02:20]} 30. Qb3 {[%emt 0:01:33]} fxg6 {[%emt 0:02:24]} 31. fxg6 {[%emt 0:00:15]} hxg6 {[%emt 0:00:46]} 32. Rxg6 {[%emt 0:01:23]} Rc7 {[%emt 0:00:58]} 33. Bg4 {[%emt 0:00:32]} Kd8 {[%emt 0:00:56]} 34. Bf5 {[%emt 0:01:20]} a4 {[%emt 0:00:33]} 35. Qd3 {[%emt 0:00:23]} Rh4 {[%emt 0:01:11]} 36. Nb1 {[%emt 0:02:07]} Nc4 {[%emt 0:00:40]} 37. Nc3 {[%emt 0:01:23]} a3 {[%emt 0:02:29]} 38. bxa3 {[%emt 0:00:19]} Ra7 {[%emt 0:00:07]} 39. a4 {[%emt 0:01:02]} Qc5 {[%emt 0:00:29]} 40. Reg2 {[%emt 0:00:53]} Qa3+ {[%emt 0:01:37] Re2 Qc5 Nxb5 Rxa4} 0-1

[Event "Lueneburg Open-A 2019"]
[Site "Lueneburg"]
[Date "2019.08.09"]
[Round "7.29"]
[White "Klausch, Uwe"]
[Black "Dijkhuis, Oele"]
[Result "0-1"]
[ECO "B72"]
[WhiteElo "1900"]
[BlackElo "2161"]
[Annotator "NA"]
[PlyCount "44"]
[EventDate "2019.08.03"]
[EventType "swiss"]
[EventCountry "GER"]
[SourceTitle "playchess.com"]
[Source "ChessBase"]
[SourceQuality "1"]
[TimeControl "40/5400+30:1800+30"]

1. e4 {[%emt 0:00:00]} c5 {[%emt 0:00:00]} 2. Nf3 {[%emt 0:00:30]} d6 {[%emt 0:00:00]} 3. d4 {[%emt 0:00:15]} cxd4 {[%emt 0:00:00]} 4. Nxd4 {[%emt 0:00:13]} Nf6 {[%emt 0:00:13]} 5. Nc3 {[%emt 0:00:24]} g6 {[%emt 0:00:17]} 6. Be3 {[%emt 0:00:42]} a6 {[%emt 0:00:23]} 7. f4 {[%emt 0:10:48]} b5 {[%emt 0:06:20]} 8. a3 {[%emt 0:03:53]} Bb7 {[%emt 0:03:02]} 9. Bd3 {[%emt 0:02:59]} e5 {[%emt 0:04:02]} 10. fxe5 {[%emt 0:05:34]} dxe5 {[%emt 0:00:06]} 11. Nf3 {[%emt 0:02:33]} Nbd7 {[%emt 0:02:41]} 12. O-O {[%emt 0:11:58]} Be7 {[%emt 0:05:19]} 13. h3 {[%emt 0:10:23]} O-O {[%emt 0:00:57]} 14. Bh6 {[%emt 0:05:18]} Re8 {[%emt 0:00:07]} 15. Nh2 {[%emt 0:00:26]} Nc5 {[%emt 0:08:54]} 16. Qf3 {[%emt 0:01:39]} Qb6 {[%emt 0:03:44]} 17. Kh1 {[%emt 0:06:14]} Qe6 {[%emt 0:02:27]} 18. Ng4 {[%emt 0:04:35]} Nxg4 {[%emt 0:02:51]} 19. hxg4 {[%emt 0:00:19]} Nxd3 {[%emt 0:01:12]} 20. cxd3 {[%emt 0:00:21]} Rad8 {[%emt 0:00:53]} 21. Rad1 {[%emt 0:04:42]} g5 {[%emt 0:05:55]} 22. Qh3 {[%emt 0:00:31]} Rd6 {[%emt 0:51:37]} 0-1